bitfinex/quotes_ETHUSD_20260109
["timestamp","ask_amount","ask_price","bid_price","bid_amount"]
[1767971684258,0.253,3076.3,3076.0,0.002]
[1767971685956,3.25014767,3076.8,3076.0,0.002]
[1767971686162,3.50314767,3076.8,3076.0,0.002]
[1767971686562,6.75329534,3076.8,3076.0,0.002]
[1767971686783,0.67532953,3076.7,3076.0,0.002]
[1767971688094,0.253,3076.9,3076.0,0.002]
[1767971688457,3.24991875,3077.0,3076.0,0.002]
[1767971688690,0.253,3076.9,3076.0,0.002]
[1767971688889,3.24991875,3077.0,3076.0,0.002]
[1767971689089,0.57807215,3076.9,3076.0,0.002]
[1767971689504,3.25070735,3077.1,3076.0,0.94118028]
[1767971689505,3.25066972,3077.1,3076.0,0.94118028]
[1767971689801,3.50366972,3077.1,3076.0,0.94118028]
[1767971690100,6.75353672,3077.1,3076.0,4.19214898]
[1767971690273,0.253,3077.0,3076.0,0.002]
[1767971690475,0.253,3077.0,3076.0,3.25295899]
[1767971690781,0.001,3076.8,3076.1,0.3252959]
[1767971692291,3.24997321,3077.0,3076.1,1.26447618]
[1767971692479,0.00080408,3077.7,3076.8,0.93918028]
[1767971693277,3.25001222,3077.7,3076.8,0.93918028]
[1767971693482,0.00080408,3077.7,3076.8,0.93918028]
[1767971694294,0.00080408,3077.7,3076.9,6.50004874]
[1767971694510,0.00080408,3077.7,3077.1,0.93918028]
[1767971694872,0.00080408,3077.7,3077.0,0.7439229]
[1767971695506,0.00080408,3077.7,3077.1,0.93918028]
[1767971696168,0.00080408,3077.7,3077.1,4.18895287]
[1767971696613,0.00080408,3077.7,3077.2,0.93918028]
[1767971696809,0.00080408,3077.7,3077.3,0.7438766]
[1767971696977,0.00080408,3077.7,3077.3,1.68305688]
[1767971698185,0.001,3078.5,3077.5,6.49878146]
[1767971698617,0.001,3078.5,3077.6,0.93918028]
[1767971698783,0.001,3078.5,3077.6,1.68298533]
[1767971698984,0.001,3078.5,3077.6,0.74380505]
[1767971699183,0.001,3078.5,3077.4,3.24944865]
[1767971699585,0.001,3078.5,3077.4,3.50444865]
[1767971699887,0.001,3078.5,3077.4,0.255]
[1767971700414,0.001,3078.5,3077.2,0.93918028]
[1767971700718,0.91086204,3078.5,3077.3,3.24954257]
[1767971701019,0.001,3078.5,3077.4,7.76310127]
[1767971701219,0.001,3078.5,3077.4,4.51360495]
[1767971701518,0.91086204,3078.5,3077.4,0.32495426]
[1767971701681,0.91086204,3078.5,3076.9,0.93918028]
[1767971701682,0.95652563,3078.5,3076.9,0.93918028]
[1767971701886,0.95652563,3078.5,3077.2,3.2496996]
[1767971702079,0.95652563,3078.5,3076.9,0.93918028]
[1767971702285,0.90986204,3078.1,3076.7,3.25184276]
[1767971702487,0.90986204,3077.9,3076.7,0.00160712]
[1767971702705,1.16286204,3078.0,3077.1,0.002]
[1767971703115,0.253,3078.0,3077.1,0.002]
[1767971703415,0.253,3077.9,3077.1,0.002]
[1767971704739,0.001,3078.2,3077.1,0.94451821]
[1767971705110,0.001,3078.2,3077.2,0.255]
[1767971706019,3.24972408,3078.2,3077.2,0.255]
[1767971707098,0.001,3078.2,3077.1,3.25181313]
[1767971707295,0.32495463,3078.1,3077.2,0.94251821]
[1767971707495,0.001,3078.2,3077.2,0.94251821]
[1767971707797,0.00080448,3078.6,3077.7,0.94251821]
[1767971709008,0.00080448,3078.6,3077.4,0.94251821]
[1767971709208,0.00080448,3078.6,3077.4,4.19192201]
[1767971709435,0.00080448,3078.6,3077.6,0.94251821]
[1767971709739,0.00080448,3078.6,3077.5,0.4446922]
[1767971709948,0.00080448,3078.6,3077.6,0.94251821]
[1767971711031,0.00080448,3078.6,3077.5,0.6996922]
[1767971711214,0.00080448,3078.6,3077.6,7.44108851]
[1767971711541,0.00080448,3078.6,3077.7,0.81407807]
[1767971711716,0.00080448,3078.6,3077.8,0.94251821]
[1767971714128,0.00080448,3078.6,3077.1,0.94451821]
[1767971714324,0.00080448,3078.6,3077.4,3.24949495]
[1767971714516,0.00080448,3078.6,3077.5,0.32494949]
[1767971715014,0.00080448,3078.6,3077.5,1.2674677]
[1767971715354,0.00080448,3078.6,3077.5,0.32494949]
[1767971715532,0.00080448,3078.6,3077.4,3.2494558]
[1767971715904,0.00080448,3078.6,3077.2,3.50469628]
[1767971715905,0.00080448,3078.6,3077.5,6.4987321]
[1767971716139,0.00080448,3078.6,3077.5,3.24934137]
[1767971716342,0.00080448,3078.6,3077.8,0.002]
[1767971716518,0.001,3078.3,3077.8,0.002]
[1767971717005,0.001,3078.3,3077.8,0.00082319]
[1767971717407,0.65076704,3078.3,3077.8,0.00082319]
[1767971717615,0.9620433,3078.1,3077.5,0.002]
[1767971718616,0.9620433,3078.1,3077.1,0.002]
[1767971719339,3.24886289,3078.0,3077.1,0.002]
[1767971719825,3.50186289,3078.0,3077.1,0.002]
[1767971720033,0.44639062,3077.9,3077.1,0.002]
[1767971721136,3.50166548,3078.2,3077.1,0.002]
[1767971721342,3.5016831,3078.2,3077.1,0.002]
[1767971722645,0.253,3078.2,3077.1,0.002]
[1767971722903,0.253,3078.2,3077.2,0.94251821]
[1767971723141,0.001,3078.3,3077.4,0.94251821]
[1767971723643,0.001,3078.3,3077.4,4.19196425]
[1767971724339,0.001,3078.3,3077.3,3.24957713]
[1767971724516,0.001,3078.3,3077.2,3.24969793]
[1767971724710,0.001,3078.3,3077.1,0.002]
[1767971724908,0.9630433,3078.3,3077.1,0.002]
[1767971725263,22.0409653,3077.8,3076.8,0.002]
[1767971725409,0.0008028,3077.1,3076.1,4.19338257]
[1767971726310,0.0008028,3077.1,3076.1,7.44425217]
[1767971726505,0.0008028,3077.1,3076.2,0.94251821]
[1767971726953,0.0008028,3077.1,3076.0,3.25296066]
[1767971727126,0.0008028,3077.1,3076.0,0.002]
[1767971727924,0.2538028,3077.1,3076.0,0.002]
[1767971729253,0.2538028,3077.1,3076.5,0.002]
[1767971729554,0.0008028,3077.1,3076.5,0.002]
[1767971729851,0.0008028,3077.1,3076.5,0.94451821]
[1767971731460,0.0008028,3077.1,3076.5,0.002]
[1767971734625,0.00119519,3076.5,3076.0,0.002]
[1767971734964,0.253,3076.8,3076.0,0.00080481]
[1767971735262,0.253,3076.8,3075.6,0.002]
[1767971735947,6.50047128,3076.7,3075.6,0.002]
[1767971736144,0.67534713,3076.6,3075.6,0.002]
[1767971736365,1.60494011,3076.6,3075.6,0.002]
[1767971736527,1.6506037,3076.6,3075.6,0.002]
[1767971737261,0.67534713,3076.6,3075.6,0.002]
[1767971737930,6.50089386,3076.5,3075.6,0.002]
[1767971738126,0.7176241,3076.4,3075.6,0.002]
[1767971738966,0.7176241,3076.4,3075.6,0.01241461]
[1767971739256,0.7176241,3076.4,3075.6,0.002]
[1767971739657,3.50334185,3076.6,3075.6,0.002]
[1767971740045,6.7536837,3076.6,3075.6,0.002]
[1767971740233,3.50334185,3076.6,3075.6,0.002]
[1767971741158,0.253,3076.6,3075.7,0.91068308]
[1767971742036,3.50334978,3076.6,3075.7,0.91068308]
[1767971742235,4.17869906,3076.6,3075.7,0.91068308]
[1767971742457,0.92834928,3076.6,3075.8,0.90868308]
[1767971742662,0.0008028,3077.1,3076.0,0.91068308]
[1767971742965,0.0008028,3077.1,3076.2,0.90868308]
[1767971743660,3.25061843,3077.1,3076.2,0.90868308]
[1767971743864,3.25061843,3077.1,3076.0,0.002]
[1767971743865,6.50043406,3077.1,3076.0,0.002]
[1767971744165,0.65004341,3077.0,3076.0,0.002]
[1767971744369,0.0008028,3077.1,3076.0,0.002]
[1767971744789,0.0008028,3077.1,3076.0,0.91068308]
[1767971745271,3.25062425,3077.1,3076.0,0.91068308]
[1767971745438,0.0008028,3077.1,3076.1,0.255]
[1767971745632,3.25062268,3077.1,3076.1,0.90868308]
[1767971745833,3.90064629,3077.1,3076.1,1.90496758]
[1767971746063,3.90064629,3077.1,3076.1,1.64996758]
[1767971746244,3.90064629,3077.1,3076.2,3.25076392]
[1767971746583,0.65082641,3077.1,3076.2,3.25076392]
[1767971746738,3.25062297,3077.1,3076.2,3.25076392]
[1767971747085,0.0008028,3077.1,3076.3,0.90868308]
[1767971748134,0.00080432,3077.7,3076.5,0.91308467]
[1767971748341,3.24904872,3078.6,3077.3,0.91388907]
[1767971748575,0.65060765,3078.6,3077.4,0.91308467]
[1767971748876,6.49732012,3078.6,3077.4,1.16808467]
[1767971749032,6.49732012,3078.6,3077.4,0.91308467]
[1767971749238,3.2490623,3078.6,3077.4,0.91308467]
[1767971749639,6.49732012,3078.6,3077.4,0.91308467]
[1767971749875,0.64973201,3078.5,3077.4,0.91308467]
[1767971750292,3.89809274,3078.5,3077.5,4.1624754]
[1767971750489,0.64973201,3078.5,3077.5,7.41186613]
[1767971750639,0.00080448,3078.6,3077.6,0.91308467]
[1767971751283,0.00082914,3078.8,3077.8,0.91308467]
[1767971751440,6.49413902,3079.7,3077.8,0.91308467]
[1767971751644,0.253,3079.6,3078.4,0.00082996]
[1767971752069,0.00080528,3079.8,3078.6,0.91308467]
[1767971752246,0.00080528,3079.8,3078.7,3.2481242]
[1767971752582,0.00080528,3079.8,3078.8,0.91308467]
[1767971752788,0.00080336,3080.2,3078.8,0.91308467]
[1767971752789,6.49398902,3080.2,3078.9,0.255]
[1767971752992,3.24734579,3080.2,3078.9,0.255]
[1767971753152,6.49398902,3080.2,3079.0,0.91308467]
[1767971753352,3.24734579,3080.2,3079.0,1.16808467]
[1767971753549,0.32473458,3080.1,3079.0,1.16808467]
[1767971753775,0.32473458,3080.1,3079.0,0.91308467]
[1767971754288,3.24675324,3080.0,3079.0,4.1608437]
[1767971754453,3.24675324,3080.0,3079.2,0.002]
[1767971754780,0.001,3079.9,3079.2,0.002]
[1767971754970,0.001,3079.9,3079.2,0.91508467]
[1767971755357,0.32576526,3079.9,3079.2,0.002]
[1767971755685,0.001,3079.9,3079.2,0.91508467]
[1767971756282,0.001,3079.9,3079.3,4.16057598]
[1767971756469,0.001,3079.9,3079.4,0.91308467]
[1767971757152,0.001,3079.9,3079.4,1.16808467]
[1767971757352,0.001,3079.9,3079.2,0.002]
[1767971757580,0.001,3079.9,3079.2,4.41766961]
[1767971758351,0.001,3079.9,3079.2,7.66526638]
[1767971758670,0.001,3079.9,3079.3,0.91308467]
[1767971758869,0.00080336,3080.2,3079.3,0.91308467]
[1767971759653,0.00080336,3080.2,3079.4,0.255]
[1767971759979,0.00080336,3080.2,3079.5,0.91308467]
[1767971760396,0.00080336,3080.2,3079.5,4.16031362]
[1767971760683,0.00080336,3080.2,3079.6,0.91308467]
[1767971761256,0.00080336,3080.2,3079.6,1.16808467]
[1767971762154,0.00080336,3080.2,3079.4,0.255]
[1767971762355,0.00080336,3080.2,3079.5,3.24724761]
[1767971762893,0.00080336,3080.2,3079.5,0.93261978]
[1767971763455,0.00080336,3080.2,3079.5,0.96509258]
[1767971763661,0.00080336,3080.2,3079.6,0.93261978]
[1767971765158,0.00080336,3080.2,3079.5,3.24727811]
[1767971765491,0.00080336,3080.2,3079.6,0.255]
[1767971765657,0.00080336,3080.2,3079.7,0.93261978]
[1767971765859,0.00080288,3080.8,3079.8,0.93342322]
[1767971766794,0.00081607,3081.4,3080.5,0.93261978]
[1767971767000,0.16949161,3082.5,3081.4,0.0920746]
[1767971767001,3.41369765,3082.5,3081.4,0.0920746]
[1767971767185,0.97876378,3082.3,3081.4,0.0920746]
[1767971767397,0.97876378,3082.1,3081.0,0.00081688]
[1767971768179,1.02442737,3082.1,3081.0,0.00081688]
[1767971768797,6.48929266,3082.0,3081.0,0.00081688]
[1767971768964,1.12149503,3081.9,3081.0,0.00081688]
[1767971769161,1.07583144,3081.9,3081.0,0.00081688]
[1767971769386,0.97876378,3081.8,3081.0,0.00081688]
[1767971770165,0.00081688,3081.4,3080.4,0.25560744]
[1767971770365,0.00081688,3081.4,3080.4,0.00160744]
[1767971770565,0.00081688,3081.4,3080.4,0.32641887]
[1767971770835,0.00081688,3081.4,3080.4,0.00160744]
[1767971771683,0.00081688,3081.4,3079.9,0.93261978]
[1767971771684,0.97958066,3081.4,3079.9,0.93261978]
[1767971771869,0.00080296,3080.8,3079.8,0.00080344]
[1767971772074,0.00080296,3080.8,3080.2,3.24647887]
[1767971772299,0.00081688,3081.4,3080.3,3.24642284]
[1767971772622,0.00081688,3081.4,3080.5,0.93261978]
[1767971772934,0.00081688,3081.4,3080.6,6.49224176]
[1767971773108,0.00080448,3081.7,3081.0,0.93343747]
[1767971773268,0.00080448,3081.7,3081.1,0.93261978]
[1767971773973,0.00080448,3081.7,3081.0,0.25481769]
[1767971774176,0.00080448,3081.7,3081.0,1.18743747]
[1767971774374,0.00080448,3081.7,3081.0,0.25481769]
[1767971774602,0.64983549,3081.7,3081.0,0.00081769]
[1767971774772,3.24506749,3081.6,3081.0,0.00081769]
[1767971775176,0.00080448,3081.7,3081.0,0.93343747]
[1767971775504,3.24433053,3082.3,3081.0,1.18743747]
[1767971775803,6.48866106,3082.3,3081.0,1.18743747]
[1767971776003,0.68300308,3082.2,3081.0,1.9553627]
[1767971776300,0.68300308,3082.2,3081.0,0.00081769]
[1767971776502,3.58567476,3082.4,3081.0,0.93343747]
[1767971776690,6.82997975,3082.4,3081.0,0.93343747]
[1767971777199,0.97876378,3082.3,3081.0,0.00081769]
[1767971777596,0.97876378,3082.3,3081.0,3.24648453]
[1767971777898,6.82997975,3082.4,3081.0,4.17910431]
[1767971778103,0.68299797,3082.3,3081.0,4.94699383]
[1767971778306,0.68299797,3082.3,3081.0,0.00081769]
[1767971778500,0.68299797,3082.3,3080.4,0.04727143]
[1767971778501,0.00081769,3081.4,3080.4,0.00160784]
[1767971778878,0.00081769,3081.4,3080.4,3.24793149]
[1767971779078,0.00081769,3081.4,3080.4,0.93422762]
[1767971779629,0.00081769,3081.4,3080.4,0.00160784]
[1767971779828,0.97442313,3081.4,3080.4,0.00160784]
[1767971781026,1.23376378,3082.0,3081.0,0.0008185]
[1767971781027,0.002,3082.0,3081.0,0.0008185]
[1767971781228,0.002,3082.0,3081.1,0.254]
[1767971781693,0.002,3082.0,3081.0,0.0008185]
[1767971782301,0.002,3082.0,3081.0,0.93343828]
[1767971782693,0.002,3082.0,3081.1,0.97828337]
[1767971783018,0.002,3082.0,3081.1,0.93261978]
[1767971783328,0.002,3082.0,3081.2,7.42359732]
[1767971783508,0.002,3082.0,3081.4,0.93261978]
[1767971783714,0.002,3082.0,3081.4,1.18661978]
[1767971785227,0.002,3082.0,3081.5,3.2451728]
[1767971785441,0.002,3082.3,3081.5,7.42296538]
[1767971785635,0.00080432,3082.9,3081.5,7.42296538]
[1767971785636,0.00080432,3082.9,3081.8,0.93261978]
[1767971785837,0.00080432,3082.9,3081.6,0.93261978]
[1767971786002,0.00080432,3082.9,3081.7,2.04966355]
[1767971786614,6.48821603,3082.9,3081.8,0.254]
[1767971787235,0.00080432,3082.9,3081.8,3.4988569]
[1767971787532,0.00080432,3082.9,3081.7,1.07138018]
[1767971787720,0.00080432,3082.9,3081.6,3.24502733]
[1767971787907,0.00080432,3082.9,3081.3,0.93261978]
[1767971787908,0.9795681,3082.9,3081.3,0.93261978]
[1767971788108,0.9795681,3082.9,3081.4,0.254]
[1767971788311,0.00080432,3082.9,3081.5,0.93261978]
[1767971788506,0.00080432,3082.9,3081.6,3.24500839]
[1767971788814,0.35053362,3082.9,3081.8,0.93261978]
[1767971789025,0.00080432,3082.9,3081.8,0.93261978]
[1767971789228,0.00080432,3082.9,3081.8,4.17739385]
[1767971789534,0.00080432,3082.9,3081.8,7.42225075]
[1767971789723,0.00080432,3082.9,3081.9,0.254]
[1767971790324,0.00080432,3082.9,3081.8,3.49877407]
[1767971790527,0.64958249,3082.9,3081.9,0.34987741]
[1767971790737,0.00080432,3082.9,3082.0,0.93261978]
[1767971791242,0.00080432,3082.9,3082.1,4.17716083]
[1767971791631,0.00080432,3082.9,3082.1,7.42170188]
[1767971791825,0.00080432,3082.9,3082.1,4.17716083]
[1767971792138,3.2652044,3083.2,3082.2,0.93261978]
[1767971792139,0.0217979,3083.2,3082.2,0.93261978]
[1767971792335,0.0217979,3083.2,3082.3,0.74217019]
[1767971792336,0.002,3082.9,3082.3,0.74217019]
[1767971792543,0.002,3082.9,3082.4,0.254]
[1767971793417,0.0217979,3083.2,3082.5,3.24412003]
[1767971793631,0.0217979,3083.2,3082.5,7.45549833]
[1767971793830,0.0217979,3083.2,3082.6,0.77094983]
[1767971794731,0.0217979,3083.2,3082.6,0.254]
[1767971794912,0.0217979,3083.2,3082.4,3.24421141]
[1767971795114,0.0217979,3083.2,3082.5,0.254]
[1767971795815,6.48697738,3083.1,3082.2,0.254]
[1767971796147,6.48697738,3083.1,3081.8,0.96725827]
[1767971796307,6.48697738,3083.1,3081.9,3.24470874]
[1767971796308,0.65087753,3083.0,3081.9,3.24470874]
[1767971796514,0.99795235,3082.9,3081.4,0.96825827]
[1767971796714,0.65087753,3083.0,3081.6,0.96725827]
[1767971797019,0.65087753,3083.0,3081.6,4.21227223]
[1767971797243,0.99795235,3082.9,3081.4,0.001]
[1767971797542,0.99795235,3082.7,3081.4,0.001]
[1767971797745,10.14929598,3082.8,3081.4,0.001]
[1767971797746,0.99795235,3082.5,3081.4,0.001]
[1767971797979,0.99795235,3082.2,3081.4,0.001]
[1767971798109,0.99795235,3082.0,3081.0,0.0016233]
[1767971798309,0.99795235,3082.0,3080.4,0.00160784]
[1767971798310,0.99877085,3081.4,3080.4,0.00160784]
[1767971798520,0.00080304,3080.8,3079.8,0.00080344]
[1767971798752,0.00080304,3080.8,3079.9,0.96725827]
[1767971798953,0.00080304,3080.8,3080.1,0.96725827]
[1767971799277,0.0008185,3081.4,3080.1,0.96725827]
[1767971799551,0.0008185,3081.4,3080.4,0.96806139]
[1767971801339,0.0008185,3081.4,3080.4,0.00080312]
[1767971801713,0.0008185,3081.4,3080.4,0.96806139]
[1767971802572,0.00080312,3080.8,3079.8,0.00080344]
[1767971803153,0.04646671,3080.8,3079.8,0.00080344]
[1767971803329,6.49203102,3080.7,3079.8,0.00080344]
[1767971804323,1.04361594,3080.6,3079.8,0.00080344]
[1767971804526,0.00080344,3080.2,3079.2,3.24956642]
[1767971804854,0.00080344,3080.2,3079.2,0.002]
[1767971805056,1.25095235,3080.1,3079.2,0.002]
[1767971805220,0.99795235,3080.0,3078.9,0.002]
[1767971805419,6.49371732,3079.9,3078.9,0.002]
[1767971805653,0.74916697,3079.8,3078.9,0.002]
[1767971806131,3.49985866,3079.9,3078.9,0.002]
[1767971806330,3.24685866,3079.9,3078.9,0.002]
[1767971806532,0.00080344,3080.2,3078.9,0.96925827]
[1767971806732,3.24736361,3080.2,3078.9,0.96925827]
[1767971807059,6.49392378,3080.2,3078.9,0.96925827]
[1767971807238,0.64939238,3080.1,3078.9,0.96925827]
[1767971807622,3.8961259,3080.1,3079.0,3.24780772]
[1767971807823,0.64939238,3080.1,3079.0,6.49561544]
[1767971808055,3.50038676,3080.2,3079.0,7.42734648]
[1767971808223,0.00080344,3080.2,3079.0,7.42734648]
[1767971808419,0.25380344,3080.2,3079.0,7.42734648]
[1767971808619,0.25380344,3080.2,3079.1,0.93173104]
[1767971808620,0.00080344,3080.2,3079.1,0.93173104]
[1767971808926,0.00080344,3080.2,3079.3,0.93173104]
[1767971809224,0.00080344,3080.2,3079.2,1.06751542]
[1767971809225,3.24739665,3080.2,3079.2,1.06751542]
[1767971809440,3.24739665,3080.2,3079.1,0.254]
[1767971809660,0.00080344,3080.2,3079.2,0.93173104]
[1767971809826,0.00080344,3080.2,3079.3,0.93173104]
[1767971810936,3.24631657,3080.5,3079.8,0.00080352]
[1767971811136,3.24601551,3080.7,3079.8,0.00080352]
[1767971811452,3.24468143,3082.0,3080.1,0.93173104]
[1767971811636,0.253,3082.4,3081.0,0.00081931]
[1767971811825,6.48866333,3082.3,3081.0,0.00081931]
[1767971813126,0.95521863,3082.2,3081.0,0.00081931]
[1767971813325,1.00088222,3082.2,3081.0,0.00081931]
[1767971814344,10.68884178,3082.1,3081.0,0.00081931]
[1767971814542,1.07345054,3082.0,3081.0,0.00081931]
[1767971815333,6.4890821,3082.1,3081.0,0.00081931]
[1767971816237,6.48883828,3082.3,3081.0,0.00081931]
[1767971816769,9.73325742,3082.3,3081.3,0.001]
[1767971817148,0.002,3082.0,3081.3,0.001]
[1767971818455,6.49129266,3082.0,3081.3,0.001]
[1767971818649,0.67442927,3081.9,3081.3,0.001]
[1767971819189,3.24664633,3082.0,3081.3,0.001]
[1767971820957,6.49129266,3082.0,3081.3,0.001]
[1767971821266,3.24664633,3082.0,3081.3,0.001]
[1767971821463,10.69115762,3082.0,3081.3,0.001]
[1767971821993,10.69115762,3082.0,3081.0,0.00081931]
[1767971821994,1.00088222,3081.7,3081.0,0.00081931]
[1767971822192,0.00081931,3081.4,3080.4,0.00160832]
[1767971822355,10.69136895,3081.3,3080.4,0.00160832]
[1767971822552,10.69136895,3081.3,3079.8,0.00080352]
[1767971822553,0.95521863,3081.1,3079.8,0.00080352]
[1767971822782,0.0008032,3080.8,3079.8,0.00080352]
[1767971825359,0.04646679,3080.8,3079.8,0.00080352]
[1767971825556,0.04566359,3080.4,3079.8,0.00080352]
[1767971825760,0.253,3080.3,3079.8,0.00080352]
[1767971825993,0.00080352,3080.2,3078.9,4.2282447]
[1767971826289,0.00080352,3080.2,3079.0,0.42282447]
[1767971826479,6.49388838,3080.2,3079.0,0.42282447]
[1767971826795,0.04566359,3079.8,3078.9,0.002]
[1767971826991,0.04566359,3079.4,3078.4,0.00082996]
[1767971827397,0.04566359,3079.2,3077.9,0.00080576]
[1767971827558,0.00082996,3078.8,3077.9,0.00080576]
[1767971827761,3.616647,3078.2,3076.4,0.9783967]
[1767971827986,0.0008044,3077.7,3076.0,0.002]
[1767971828186,0.04566359,3077.4,3076.0,0.002]
[1767971828418,14.72478959,3077.0,3076.0,0.002]
[1767971828567,0.04566359,3076.8,3075.6,0.002]
[1767971828767,0.253,3076.7,3075.6,0.002]
[1767971828964,1.27772553,3076.9,3075.7,0.9803967]
[1767971829308,0.00080288,3077.1,3075.7,0.9803967]
[1767971829470,0.25380288,3077.1,3077.0,0.002]
[1767971829671,0.253,3077.1,3076.7,0.00080296]
[1767971829918,0.0008044,3077.7,3076.7,0.00080296]
[1767971830069,0.0008044,3077.7,3076.7,0.97919966]
[1767971830489,0.0008044,3077.7,3076.7,0.00080296]
[1767971830699,0.67599964,3077.7,3076.7,0.00080296]
[1767971830896,0.0008044,3077.7,3076.7,0.00080296]
[1767971831075,0.04566359,3077.6,3076.7,0.00080296]
[1767971832618,0.0008044,3077.7,3076.7,0.00080296]
[1767971832911,0.253,3077.6,3076.7,0.00080296]
[1767971833409,0.29866359,3077.6,3076.7,0.00080296]
[1767971833579,0.67978682,3077.5,3076.7,0.00080296]
[1767971834205,0.04566359,3077.4,3076.7,0.00080296]
[1767971834534,0.04566359,3077.4,3075.7,3.25328409]
[1767971834535,6.49962626,3077.1,3075.7,3.24809332]
[1767971834676,0.253,3077.0,3075.7,6.4993857]
[1767971834878,0.253,3077.0,3075.7,3.24809332]
[1767971835117,0.93290928,3077.0,3075.8,0.74798733]
[1767971836629,0.25380296,3077.1,3076.1,0.9783967]
[1767971836790,3.5036231,3077.1,3076.1,0.9783967]
[1767971836990,0.25380296,3077.1,3076.1,0.9783967]
[1767971837515,0.25380296,3077.1,3075.8,3.99910228]
[1767971837516,6.75347518,3077.1,3075.8,3.99910228]
[1767971837821,0.67534752,3077.0,3075.9,3.25106805]
[1767971838609,0.67534752,3077.0,3075.8,0.74798733]
[1767971838811,3.24993977,3077.0,3075.8,4.22953781]
[1767971839012,6.49987954,3077.0,3075.8,0.9783967]
[1767971839231,0.04566359,3076.9,3075.6,0.002]
[1767971839532,0.04566359,3076.5,3075.6,0.002]
[1767971839691,0.04566359,3076.3,3075.6,0.002]
[1767971840203,10.68437267,3077.0,3075.6,0.002]
[1767971840204,0.253,3076.8,3075.9,3.25108098]
[1767971840375,3.25065994,3077.1,3075.9,3.25108098]
[1767971840376,3.2506251,3077.1,3076.1,0.9783967]
[1767971840579,3.25061609,3077.1,3076.0,0.3251081]
[1767971840816,3.25061609,3077.1,3075.6,0.9803967]
[1767971840817,0.04566359,3077.0,3075.6,0.002]
[1767971841420,0.04566359,3077.0,3075.9,0.002]
[1767971841583,0.04566359,3076.8,3075.9,0.002]
[1767971841982,0.04566359,3076.8,3075.9,3.25300781]
[1767971842219,0.04566359,3076.8,3076.0,3.25096459]
[1767971842421,0.253,3077.0,3076.0,3.25096459]
[1767971842586,0.253,3077.0,3075.9,0.65242871]
[1767971842787,0.253,3077.0,3075.9,6.50413363]
[1767971843125,0.00080296,3077.1,3076.0,0.9783967]
[1767971843323,0.0008044,3077.7,3076.7,0.00080304]
[1767971843555,6.4992372,3077.7,3076.7,0.00080304]
[1767971843829,0.04566359,3077.6,3076.7,0.00080304]
[1767971843991,0.04566359,3077.2,3076.7,0.00080304]
[1767971844325,0.04566359,3077.0,3075.9,0.002]
[1767971844532,0.04566359,3076.6,3075.9,0.002]
[1767971844685,6.50152784,3076.2,3075.6,1e-08]
[1767971844890,3.25076392,3076.2,3075.6,1e-08]
[1767971845120,0.253,3076.1,3075.6,1e-08]
[1767971845340,0.60337639,3076.1,3075.6,1e-08]
[1767971845625,3.25002437,3076.9,3075.6,1e-08]
[1767971845829,0.253,3076.6,3075.6,1e-08]
[1767971846787,3.25044693,3076.5,3075.6,1e-08]
[1767971847716,6.50089386,3076.5,3075.6,1e-08]
[1767971848044,3.25044693,3076.5,3075.6,1e-08]
[1767971848185,6.50089386,3076.5,3075.6,0.42339997]
[1767971848588,6.50089386,3076.5,3075.6,1e-08]
[1767971850193,3.25044693,3076.5,3075.6,1e-08]
[1767971850393,0.253,3076.4,3075.6,1e-08]
[1767971850607,3.2956314,3077.0,3075.6,1e-08]
[1767971850815,0.25380304,3077.1,3075.6,1e-08]
[1767971851035,6.7534457,3077.1,3075.7,0.9783967]
[1767971851328,3.50362437,3077.1,3075.8,0.74811929]
[1767971851527,6.7534457,3077.1,3075.8,0.74811929]
[1767971851834,0.93455336,3077.0,3075.8,0.74811929]
[1767971851989,0.93455336,3077.0,3075.6,3.25139811]
[1767971852190,0.93455336,3077.0,3075.6,6.50279621]
[1767971852696,6.7534457,3077.1,3075.7,0.9783967]
[1767971853126,6.7534457,3077.1,3075.8,3.25118668]
[1767971853425,6.7534457,3077.1,3075.7,4.22963723]
[1767971853729,1.00488906,3077.0,3075.8,0.74810353]
[1767971854019,0.001,3076.7,3075.8,0.74810353]
[1767971854552,0.001,3076.7,3075.6,1e-08]
[1767971854852,0.04566359,3076.6,3075.6,1e-08]
[1767971855015,6.50110518,3076.4,3075.6,1e-08]
[1767971855814,3.25034128,3076.6,3075.6,1e-08]
[1767971856145,0.253,3076.6,3075.6,1e-08]
[1767971857212,6.50089386,3076.5,3075.6,1e-08]
[1767971860152,0.04566359,3076.2,3075.6,1e-08]
[1767971860329,0.04566359,3076.2,3075.3,0.00082586]
[1767971860330,0.04566359,3076.0,3075.3,0.00082586]
[1767971860651,0.00082586,3075.7,3074.7,3.25229287]
[1767971861062,0.00082586,3075.7,3074.8,3.25222645]
[1767971861220,0.00082586,3075.7,3074.8,0.65046563]
[1767971861425,0.00082586,3075.7,3074.5,0.99058103]
[1767971862820,3.50344693,3076.5,3075.2,0.99058103]
[1767971863019,3.50344693,3076.5,3075.3,0.99140771]
[1767971863243,3.50344693,3076.5,3075.4,7.49380011]
[1767971863452,6.75389386,3076.5,3075.4,0.99058103]
[1767971863620,6.75389386,3076.5,3075.5,0.42430744]
[1767971864631,3.50344693,3076.5,3075.5,0.42430744]
[1767971864927,3.50349854,3076.5,3075.5,0.42430744]
[1767971865134,3.50349854,3076.5,3075.5,3.67579236]
[1767971865654,3.25124181,3076.7,3075.6,0.99058103]
[1767971865858,0.254,3076.7,3075.7,1.78236875]
[1767971866059,0.001,3076.4,3075.7,1.78236875]
[1767971867724,0.001,3076.4,3075.5,0.42430744]
[1767971867926,0.001,3076.4,3075.5,3.25144493]
[1767971868652,0.001,3076.4,3075.5,3.25142811]
[1767971868833,0.001,3076.4,3075.7,6.50255196]
[1767971869350,0.001,3076.4,3075.7,3.25125958]
[1767971869756,0.001,3076.4,3075.5,0.97544896]
[1767971869954,0.001,3076.4,3075.6,0.7478668]
[1767971871460,0.001,3076.4,3075.7,0.97544896]
[1767971871872,0.001,3076.7,3075.9,0.97544896]
[1767971872164,0.00080304,3077.1,3076.2,0.97544896]
[1767971872740,3.25062608,3077.1,3076.2,0.97544896]
[1767971872954,3.25062608,3077.1,3075.8,7.73282232]
[1767971873133,3.25062608,3077.1,3075.9,0.77328223]
[1767971873534,6.50044912,3077.1,3075.9,0.77328223]
[1767971873733,3.25062608,3077.1,3075.9,0.77328223]
[1767971873937,3.25062608,3077.1,3076.0,6.50195058]
[1767971874136,3.25062608,3077.1,3076.0,7.47739954]
[1767971874370,3.25062608,3077.1,3076.1,0.82506818]